[Event "*** Titled Tuesday Blitz"]
[Site "Chess.com"]
[Date "2021.03.30"]
[Round "2"]
[White "gxbg2000"]
[Black "Kolle05"]
[Result "0-1"]
[WhiteElo "1906"]
[BlackElo "2372"]
[TimeControl "180+1"]
[EndTime "10:20:23 PDT"]
[Termination "Kolle05 won on time"]

1. e4 {[%clk 0:03:00.9]} 1... c5 {[%clk 0:02:59.5]} 2. f4 {[%clk 0:02:59.9]}
2... d5 {[%clk 0:02:56.2]} 3. exd5 {[%clk 0:02:59]} 3... Nf6 {[%clk 0:02:55.4]}
4. Nc3 {[%clk 0:02:55.7]} 4... Nxd5 {[%clk 0:02:51.6]} 5. Nxd5 {[%clk
0:02:55.2]} 5... Qxd5 {[%clk 0:02:52.5]} 6. Qf3 {[%clk 0:02:55.3]} 6... e6
{[%clk 0:02:29.7]} 7. Qxd5 {[%clk 0:02:54.7]} 7... exd5 {[%clk 0:02:30.6]} 8.
Nf3 {[%clk 0:02:52.3]} 8... Bd6 {[%clk 0:02:30.1]} 9. d3 {[%clk 0:02:51.6]} 9...
O-O {[%clk 0:02:29.7]} 10. g3 {[%clk 0:02:51.4]} 10... Nc6 {[%clk 0:02:29.8]}
11. c3 {[%clk 0:02:48.4]} 11... Bf5 {[%clk 0:02:28]} 12. Kf2 {[%clk 0:02:47.5]}
12... b5 {[%clk 0:02:19.7]} 13. a3 {[%clk 0:02:43.9]} 13... a5 {[%clk
0:02:17.3]} 14. Bd2 {[%clk 0:02:43.6]} 14... b4 {[%clk 0:02:16]} 15. axb4 {[%clk
0:02:41.2]} 15... axb4 {[%clk 0:02:16.9]} 16. Bg2 {[%clk 0:02:41.3]} 16... Bxd3
{[%clk 0:02:11.9]} 17. Ng5 {[%clk 0:02:35.5]} 17... Bc4 {[%clk 0:02:00.1]} 18.
Be3 {[%clk 0:02:26.3]} 18... h6 {[%clk 0:01:36]} 19. Nf3 {[%clk 0:02:23.3]}
19... Rfb8 {[%clk 0:01:31.5]} 20. Nd2 {[%clk 0:02:22.7]} 20... Rxa1 {[%clk
0:01:24.9]} 21. Rxa1 {[%clk 0:02:21.7]} 21... bxc3 {[%clk 0:01:18.3]} 22. Nxc4
{[%clk 0:02:15.9]} 22... cxb2 {[%clk 0:01:09]} 23. Rb1 {[%clk 0:02:14.4]} 23...
dxc4 {[%clk 0:01:03.1]} 24. Bxc6 {[%clk 0:02:13.1]} 24... c3 {[%clk 0:01:04]}
25. Be4 {[%clk 0:02:11.1]} 25... Rb4 {[%clk 0:00:57.1]} 26. Bc2 {[%clk
0:02:09.8]} 26... Kf8 {[%clk 0:00:41.7]} 27. Ke2 {[%clk 0:02:09.8]} 27... Ke8
{[%clk 0:00:27.5]} 28. Kd3 {[%clk 0:02:09.5]} 28... g5 {[%clk 0:00:26.8]} 29.
fxg5 {[%clk 0:02:07.8]} 29... hxg5 {[%clk 0:00:27.7]} 30. Bd1 {[%clk 0:01:55.2]}
30... Kd7 {[%clk 0:00:28]} 31. Kc2 {[%clk 0:01:55.3]} 31... f6 {[%clk
0:00:26.2]} 32. Bf3 {[%clk 0:01:53.3]} 32... Be5 {[%clk 0:00:24.5]} 33. Bxc5
{[%clk 0:01:50.8]} 33... Rb8 {[%clk 0:00:25]} 34. Be3 {[%clk 0:01:49.3]} 34...
Rh8 {[%clk 0:00:24.7]} 35. Bg1 {[%clk 0:01:45.2]} 35... f5 {[%clk 0:00:25]} 36.
Rd1+ {[%clk 0:01:40.9]} 36... Ke6 {[%clk 0:00:24.9]} 37. Bd5+ {[%clk 0:01:39.8]}
37... Kf6 {[%clk 0:00:24.8]} 38. Rf1 {[%clk 0:01:36.4]} 38... f4 {[%clk
0:00:23.8]} 39. gxf4 {[%clk 0:01:31]} 39... gxf4 {[%clk 0:00:24.7]} 40. Ba2
{[%clk 0:01:24.4]} 40... Kf5 {[%clk 0:00:25.1]} 41. Bb1 {[%clk 0:01:22.4]} 41...
Kg4 {[%clk 0:00:25.4]} 42. Ba2 {[%clk 0:01:20.7]} 42... Rd8 {[%clk 0:00:24.2]}
43. Bb3 {[%clk 0:01:13]} 43... Rd2+ {[%clk 0:00:23.9]} 44. Kb1 {[%clk
0:01:12.4]} 44... f3 {[%clk 0:00:23.3]} 45. Bc2 {[%clk 0:01:09]} 45... Bxh2
{[%clk 0:00:22.9]} 46. Bxh2 {[%clk 0:01:03.8]} 46... Rxh2 {[%clk 0:00:23.8]} 47.
Be4 {[%clk 0:01:03.2]} 47... f2 {[%clk 0:00:23.2]} 48. Kc2 {[%clk 0:00:59.4]}
48... Kf4 {[%clk 0:00:23.4]} 49. Bd3 {[%clk 0:00:58.6]} 49... Ke3 {[%clk
0:00:23.7]} 50. Bc4 {[%clk 0:00:58.4]} 50... Rh6 {[%clk 0:00:19.2]} 51. Kxc3
{[%clk 0:00:57.6]} 51... Rb6 {[%clk 0:00:19.6]} 52. Ba2 {[%clk 0:00:55.6]} 52...
Ke2 {[%clk 0:00:18.9]} 53. Bc4+ {[%clk 0:00:55.3]} 53... Kf3 {[%clk 0:00:19.2]}
54. Bd5+ {[%clk 0:00:54.6]} 54... Kg3 {[%clk 0:00:18.2]} 55. Be4 {[%clk
0:00:49.7]} 55... Rb8 {[%clk 0:00:17.1]} 56. Kc2 {[%clk 0:00:46.9]} 56... Kf4
{[%clk 0:00:16.8]} 57. Bd3 {[%clk 0:00:45.4]} 57... Ke3 {[%clk 0:00:17.7]} 58.
Ba6 {[%clk 0:00:44.3]} 58... Rb6 {[%clk 0:00:15.6]} 59. Bc4 {[%clk 0:00:43.5]}
59... Rc6 {[%clk 0:00:15.8]} 60. Kc3 {[%clk 0:00:40.5]} 60... Rxc4+ {[%clk
0:00:15.8]} 61. Kxc4 {[%clk 0:00:40.5]} 61... Ke2 {[%clk 0:00:16.7]} 62. Rb1
{[%clk 0:00:40.1]} 62... f1=Q {[%clk 0:00:16.8]} 63. Rxb2+ {[%clk 0:00:39.6]}
63... Ke3+ {[%clk 0:00:16.4]} 64. Kb4 {[%clk 0:00:35.8]} 64... Qc1 {[%clk
0:00:15.8]} 65. Rb3+ {[%clk 0:00:35.7]} 65... Kd4 {[%clk 0:00:16]} 66. Ka4
{[%clk 0:00:29.6]} 66... Qc2 {[%clk 0:00:11.7]} 67. Ka3 {[%clk 0:00:28.9]} 67...
Qc1+ {[%clk 0:00:08.7]} 68. Ka2 {[%clk 0:00:28]} 68... Kc4 {[%clk 0:00:06]} 69.
Rb2 {[%clk 0:00:26]} 69... Qd1 {[%clk 0:00:06]} 70. Rb1 {[%clk 0:00:20]} 70...
Qa4+ {[%clk 0:00:05.3]} 71. Kb2 {[%clk 0:00:19.6]} 71... Qb3+ {[%clk 0:00:06.2]}
72. Kc1 {[%clk 0:00:18.7]} 72... Qe3+ {[%clk 0:00:06.2]} 73. Kb2 {[%clk
0:00:18.4]} 73... Qd2+ {[%clk 0:00:06.4]} 74. Ka1 {[%clk 0:00:17]} 74... Kc3
{[%clk 0:00:06.9]} 75. Rb8 {[%clk 0:00:13.8]} 75... Qd1+ {[%clk 0:00:06.6]} 76.
Ka2 {[%clk 0:00:12.2]} 76... Qa4+ {[%clk 0:00:06.5]} 77. Kb1 {[%clk 0:00:12.3]}
77... Qe4+ {[%clk 0:00:06.7]} 78. Ka1 {[%clk 0:00:11.2]} 78... Qh1+ {[%clk
0:00:03.5]} 79. Ka2 {[%clk 0:00:10.4]} 79... Qd5+ {[%clk 0:00:03.8]} 80. Kb1
{[%clk 0:00:09.5]} 80... Qd1+ {[%clk 0:00:03.1]} 81. Ka2 {[%clk 0:00:09.1]}
81... Qa4+ {[%clk 0:00:03]} 82. Kb1 {[%clk 0:00:08.8]} 82... Qe4+ {[%clk
0:00:03.5]} 83. Ka2 {[%clk 0:00:08.4]} 83... Qe6+ {[%clk 0:00:03.4]} 84. Kb1
{[%clk 0:00:07.9]} 84... Qh6 {[%clk 0:00:01.1]} 85. Rc8+ {[%clk 0:00:04.6]}
85... Kb4 {[%clk 0:00:01.2]} 86. Rb8+ {[%clk 0:00:04.5]} 86... Kc5 {[%clk
0:00:01.9]} 87. Rc8+ {[%clk 0:00:04.4]} 87... Kb6 {[%clk 0:00:02.8]} 88. Rb8+
{[%clk 0:00:04.4]} 88... Kc7 {[%clk 0:00:03.7]} 89. Rb2 {[%clk 0:00:04.5]} 89...
Qh1+ {[%clk 0:00:03.1]} 90. Ka2 {[%clk 0:00:04.1]} 90... Kc6 {[%clk 0:00:04]}
91. Ka3 {[%clk 0:00:03.6]} 91... Kc5 {[%clk 0:00:04]} 92. Ka2 {[%clk 0:00:03.9]}
92... Qf3 {[%clk 0:00:03.2]} 93. Rc2+ {[%clk 0:00:03.8]} 93... Kb4 {[%clk
0:00:03.3]} 94. Rb2+ {[%clk 0:00:03.9]} 94... Ka4 {[%clk 0:00:03.9]} 95. Kb1
{[%clk 0:00:02.8]} 95... Qd1+ {[%clk 0:00:03.6]} 96. Ka2 {[%clk 0:00:02.7]}
96... Qd5+ {[%clk 0:00:04.5]} 97. Kb1 {[%clk 0:00:02.5]} 97... Qc4 {[%clk
0:00:04.7]} 98. Ka1 {[%clk 0:00:01.9]} 98... Ka3 {[%clk 0:00:04.3]} 0-1

[Event "*** Titled Tuesday Blitz"]
[Site "Chess.com"]
[Date "2021.03.30"]
[Round "2"]
[White "UKR_Master"]
[Black "IMTominho"]
[Result "1/2-1/2"]
[WhiteElo "2569"]
[BlackElo "2855"]
[TimeControl "180+1"]
[EndTime "10:20:34 PDT"]
[Termination "Game drawn - insufficient material"]

1. e4 {[%clk 0:03:00.9]} 1... e5 {[%clk 0:02:54]} 2. Nf3 {[%clk 0:03:01.2]} 2...
Nf6 {[%clk 0:02:53.9]} 3. Nxe5 {[%clk 0:03:01.1]} 3... d6 {[%clk 0:02:51.9]} 4.
Nf3 {[%clk 0:03:01.6]} 4... Nxe4 {[%clk 0:02:51.4]} 5. Nc3 {[%clk 0:03:02.2]}
5... Nf6 {[%clk 0:02:49.1]} 6. d4 {[%clk 0:02:53.7]} 6... Be7 {[%clk 0:02:41.4]}
7. Bd3 {[%clk 0:02:47.7]} 7... c6 {[%clk 0:02:34.7]} 8. O-O {[%clk 0:02:44.2]}
8... Bg4 {[%clk 0:02:33.5]} 9. h3 {[%clk 0:02:41.7]} 9... Bh5 {[%clk 0:02:28.7]}
10. Bf4 {[%clk 0:02:38.4]} 10... O-O {[%clk 0:02:28.1]} 11. Be2 {[%clk
0:02:30.9]} 11... Re8 {[%clk 0:02:25.6]} 12. Qd2 {[%clk 0:02:24.3]} 12... a5
{[%clk 0:02:19.8]} 13. a4 {[%clk 0:02:19]} 13... Nbd7 {[%clk 0:02:17.7]} 14.
Rfe1 {[%clk 0:02:16.1]} 14... Bf8 {[%clk 0:02:16.1]} 15. Ng5 {[%clk 0:02:02.9]}
15... Bxe2 {[%clk 0:02:00.9]} 16. Rxe2 {[%clk 0:02:02.5]} 16... Qb6 {[%clk
0:02:01.1]} 17. b3 {[%clk 0:01:33.7]} 17... Rxe2 {[%clk 0:01:48.5]} 18. Nxe2
{[%clk 0:01:31]} 18... h6 {[%clk 0:01:47.6]} 19. Nf3 {[%clk 0:01:29.9]} 19...
Ne4 {[%clk 0:01:31.6]} 20. Qd3 {[%clk 0:01:29.5]} 20... Re8 {[%clk 0:01:31.7]}
21. Re1 {[%clk 0:01:24.8]} 21... Ndf6 {[%clk 0:01:12.9]} 22. Ng3 {[%clk
0:01:16.6]} 22... Nxg3 {[%clk 0:01:11.6]} 23. Rxe8 {[%clk 0:01:16.3]} 23... Nxe8
{[%clk 0:01:12.5]} 24. Bxg3 {[%clk 0:01:16.7]} 24... Nf6 {[%clk 0:01:09.7]} 25.
Qc4 {[%clk 0:01:01.6]} 25... Qd8 {[%clk 0:01:04.1]} 26. Bf4 {[%clk 0:01:00.6]}
26... Ne4 {[%clk 0:01:00.4]} 27. Qd3 {[%clk 0:00:57.7]} 27... d5 {[%clk
0:00:59.8]} 28. Nd2 {[%clk 0:00:54.6]} 28... Nf6 {[%clk 0:00:55.6]} 29. Kf1
{[%clk 0:00:53.6]} 29... Bb4 {[%clk 0:00:55]} 30. c3 {[%clk 0:00:54]} 30... Bf8
{[%clk 0:00:54.8]} 31. f3 {[%clk 0:00:54.5]} 31... Nd7 {[%clk 0:00:53.8]} 32.
Kf2 {[%clk 0:00:53.8]} 32... Qh4+ {[%clk 0:00:52.2]} 33. Bg3 {[%clk 0:00:53.5]}
33... Qg5 {[%clk 0:00:52.6]} 34. Qe3 {[%clk 0:00:53.4]} 34... Qd8 {[%clk
0:00:51.1]} 35. Qf4 {[%clk 0:00:48.6]} 35... Ba3 {[%clk 0:00:26.1]} 36. Ke2
{[%clk 0:00:36.7]} 36... Qe7+ {[%clk 0:00:23.7]} 37. Qe3 {[%clk 0:00:35.4]}
37... Qd8 {[%clk 0:00:22.2]} 38. Qf4 {[%clk 0:00:35.1]} 38... Nf8 {[%clk
0:00:22.4]} 39. Qc7 {[%clk 0:00:33.3]} 39... Qg5 {[%clk 0:00:17.5]} 40. Qf4
{[%clk 0:00:32.2]} 40... Ne6 {[%clk 0:00:16.4]} 41. Qxg5 {[%clk 0:00:32.2]}
41... hxg5 {[%clk 0:00:17.3]} 42. Nf1 {[%clk 0:00:29.5]} 42... f6 {[%clk
0:00:17.3]} 43. Ne3 {[%clk 0:00:29.7]} 43... g6 {[%clk 0:00:17.6]} 44. Nc2
{[%clk 0:00:27.3]} 44... Be7 {[%clk 0:00:17.7]} 45. Kd3 {[%clk 0:00:27.5]} 45...
Kf7 {[%clk 0:00:18]} 46. Ne3 {[%clk 0:00:27.3]} 46... f5 {[%clk 0:00:17.5]} 47.
Be5 {[%clk 0:00:26.7]} 47... Nf4+ {[%clk 0:00:15.6]} 48. Bxf4 {[%clk 0:00:26.8]}
48... gxf4 {[%clk 0:00:16.5]} 49. Nf1 {[%clk 0:00:15]} 49... Kf6 {[%clk
0:00:15.7]} 50. Nd2 {[%clk 0:00:15]} 50... Kg5 {[%clk 0:00:15.6]} 51. Nf1 {[%clk
0:00:15.4]} 51... Kh4 {[%clk 0:00:15.9]} 52. Ke2 {[%clk 0:00:15.7]} 52... Ba3
{[%clk 0:00:16.1]} 53. Kd2 {[%clk 0:00:15]} 53... Bb2 {[%clk 0:00:16.1]} 54. Kc2
{[%clk 0:00:15.2]} 54... Ba3 {[%clk 0:00:14.7]} 55. Kd2 {[%clk 0:00:15.6]} 55...
Bd6 {[%clk 0:00:13.9]} 56. Ke2 {[%clk 0:00:15.9]} 56... c5 {[%clk 0:00:11.3]}
57. dxc5 {[%clk 0:00:13.6]} 57... Bxc5 {[%clk 0:00:12.2]} 58. Kd3 {[%clk
0:00:14.5]} 58... Kg5 {[%clk 0:00:12.3]} 59. Ke2 {[%clk 0:00:14.4]} 59... d4
{[%clk 0:00:11.9]} 60. cxd4 {[%clk 0:00:13.7]} 60... Bxd4 {[%clk 0:00:12.8]} 61.
Kd3 {[%clk 0:00:14.6]} 61... Bc5 {[%clk 0:00:12.8]} 62. Kc4 {[%clk 0:00:15.1]}
62... b6 {[%clk 0:00:13.2]} 63. Kd5 {[%clk 0:00:15.2]} 63... Kf6 {[%clk
0:00:12.7]} 64. Nd2 {[%clk 0:00:14.3]} 64... Kg5 {[%clk 0:00:12.1]} 65. Nf1
{[%clk 0:00:14.6]} 65... Bb4 {[%clk 0:00:09.4]} 66. Kc6 {[%clk 0:00:12.5]} 66...
Kf6 {[%clk 0:00:06.8]} 67. Kd5 {[%clk 0:00:10.9]} 67... g5 {[%clk 0:00:06.5]}
68. Nh2 {[%clk 0:00:11.4]} 68... Be1 {[%clk 0:00:05.6]} 69. Nf1 {[%clk
0:00:11.6]} 69... Bf2 {[%clk 0:00:05.8]} 70. Nd2 {[%clk 0:00:11.5]} 70... Bc5
{[%clk 0:00:06.2]} 71. Nc4 {[%clk 0:00:11.8]} 71... Be3 {[%clk 0:00:07]} 72. Kc6
{[%clk 0:00:12.1]} 72... g4 {[%clk 0:00:06.8]} 73. Nxb6 {[%clk 0:00:12]} 73...
Kg5 {[%clk 0:00:04.2]} 74. hxg4 {[%clk 0:00:07.6]} 74... fxg4 {[%clk 0:00:04.2]}
75. Nd5 {[%clk 0:00:08.1]} 75... Kh4 {[%clk 0:00:04.3]} 76. fxg4 {[%clk
0:00:07.6]} 76... Kxg4 {[%clk 0:00:03.3]} 77. Kb5 {[%clk 0:00:05.4]} 77... Bd2
{[%clk 0:00:02.9]} 78. Ne7 {[%clk 0:00:01.4]} 78... Kg3 {[%clk 0:00:01.6]} 79.
Nd5 {[%clk 0:00:02]} 79... Kxg2 {[%clk 0:00:02.1]} 80. Nxf4+ {[%clk 0:00:02.6]}
80... Kf3 {[%clk 0:00:02.8]} 81. Nd5 {[%clk 0:00:02.3]} 81... Ke4 {[%clk
0:00:03.7]} 82. Nc7 {[%clk 0:00:02.8]} 82... Ke5 {[%clk 0:00:04]} 83. Na6 {[%clk
0:00:03.7]} 83... Kd6 {[%clk 0:00:04.9]} 84. Nc5 {[%clk 0:00:04.6]} 84... Be3
{[%clk 0:00:04.9]} 85. Nd3 {[%clk 0:00:05.5]} 85... Bd2 {[%clk 0:00:05.8]} 86.
Nb2 {[%clk 0:00:06.4]} 86... Bc3 {[%clk 0:00:05.5]} 87. Nc4+ {[%clk 0:00:07.3]}
87... Kc7 {[%clk 0:00:06.4]} 88. Nxa5 {[%clk 0:00:08.2]} 88... Bd4 {[%clk
0:00:07.3]} 89. Nc4 {[%clk 0:00:09.1]} 89... Ba7 {[%clk 0:00:07.5]} 90. a5
{[%clk 0:00:09.6]} 90... Bg1 {[%clk 0:00:08.4]} 91. b4 {[%clk 0:00:09.2]} 91...
Kb7 {[%clk 0:00:09.3]} 92. Nb6 {[%clk 0:00:09.5]} 92... Ka7 {[%clk 0:00:09.6]}
93. Nd7 {[%clk 0:00:09.7]} 93... Kb7 {[%clk 0:00:10.5]} 94. Nc5+ {[%clk
0:00:10.6]} 94... Kc7 {[%clk 0:00:10]} 95. Kc4 {[%clk 0:00:09.5]} 95... Kc6
{[%clk 0:00:10.3]} 96. b5+ {[%clk 0:00:09.9]} 96... Kc7 {[%clk 0:00:10.6]} 97.
Ne6+ {[%clk 0:00:08.9]} 97... Kb7 {[%clk 0:00:10.7]} 98. Nd4 {[%clk 0:00:09]}
98... Kc8 {[%clk 0:00:11.6]} 99. Kc5 {[%clk 0:00:09.3]} 99... Kd7 {[%clk
0:00:12.4]} 100. b6 {[%clk 0:00:07.4]} 100... Kc8 {[%clk 0:00:12.3]} 101. Kd5
{[%clk 0:00:07.4]} 101... Kb7 {[%clk 0:00:12.6]} 102. Kc5 {[%clk 0:00:06.9]}
102... Ka6 {[%clk 0:00:11.5]} 103. Kc4 {[%clk 0:00:05.8]} 103... Kb7 {[%clk
0:00:10.8]} 104. Nb3 {[%clk 0:00:04.6]} 104... Bxb6 {[%clk 0:00:09.4]} 105. axb6
{[%clk 0:00:05.1]} 105... Kxb6 {[%clk 0:00:10.3]} 1/2-1/2

[Event "*** Titled Tuesday Blitz"]
[Site "Chess.com"]
[Date "2021.03.30"]
[Round "3"]
[White "zmeeed67"]
[Black "Nikolakis2014"]
[Result "0-1"]
[WhiteElo "2416"]
[BlackElo "2608"]
[TimeControl "180+1"]
[EndTime "10:22:33 PDT"]
[Termination "Nikolakis2014 won by resignation"]

1. d4 {[%clk 0:03:00.9]} 1... Nf6 {[%clk 0:02:57.9]} 2. c4 {[%clk 0:03:01.3]}
2... g6 {[%clk 0:02:57.2]} 3. Nc3 {[%clk 0:03:01.8]} 3... Bg7 {[%clk 0:02:57.8]}
4. e4 {[%clk 0:03:02.1]} 4... d6 {[%clk 0:02:58.1]} 5. Be2 {[%clk 0:03:02.5]}
5... O-O {[%clk 0:02:57.8]} 6. Bg5 {[%clk 0:03:03]} 6... c5 {[%clk 0:02:57.4]}
7. d5 {[%clk 0:03:02.8]} 7... e6 {[%clk 0:02:57.8]} 8. Qd2 {[%clk 0:03:02]} 8...
exd5 {[%clk 0:02:58]} 9. exd5 {[%clk 0:03:02.9]} 9... Qb6 {[%clk 0:02:58.2]} 10.
Nf3 {[%clk 0:03:00.6]} 10... Bf5 {[%clk 0:02:54.6]} 11. Nh4 {[%clk 0:03:00.7]}
11... Ne4 {[%clk 0:02:53.5]} 12. Nxe4 {[%clk 0:03:01.1]} 12... Bxe4 {[%clk
0:02:53.8]} 13. f3 {[%clk 0:03:01.7]} 13... h6 {[%clk 0:02:54.3]} 14. Bxh6
{[%clk 0:03:01.8]} 14... Bxh6 {[%clk 0:02:54.5]} 15. Qxh6 {[%clk 0:03:02.7]}
15... Qxb2 {[%clk 0:02:54.7]} 16. O-O {[%clk 0:03:02.7]} 16... Bc2 {[%clk
0:02:51.3]} 17. Rac1 {[%clk 0:03:02.4]} 17... Re8 {[%clk 0:02:49.7]} 18. Rf2
{[%clk 0:03:00.5]} 18... Ba4 {[%clk 0:02:36.8]} 19. Bd1 {[%clk 0:03:00.1]} 19...
Re1+ {[%clk 0:02:32.6]} 20. Rf1 {[%clk 0:02:58.6]} 20... Qd4+ {[%clk 0:02:32.1]}
0-1

[Event "*** Titled Tuesday Blitz"]
[Site "Chess.com"]
[Date "2021.03.30"]
[Round "3"]
[White "ShapkinAnatoliy"]
[Black "Sueetin"]
[Result "1-0"]
[WhiteElo "2657"]
[BlackElo "2425"]
[TimeControl "180+1"]
[EndTime "10:22:44 PDT"]
[Termination "ShapkinAnatoliy won by resignation"]

1. d4 {[%clk 0:03:00.9]} 1... Nf6 {[%clk 0:02:59.7]} 2. c4 {[%clk 0:03:01.2]}
2... e6 {[%clk 0:03:00.2]} 3. g3 {[%clk 0:03:01]} 3... d5 {[%clk 0:02:58.3]} 4.
Nf3 {[%clk 0:03:01]} 4... dxc4 {[%clk 0:02:58.1]} 5. Bg2 {[%clk 0:03:01.7]} 5...
a6 {[%clk 0:02:57.9]} 6. O-O {[%clk 0:03:02.2]} 6... Nc6 {[%clk 0:02:57.6]} 7.
Bg5 {[%clk 0:03:02.5]} 7... Be7 {[%clk 0:02:54.9]} 8. e3 {[%clk 0:03:02.9]} 8...
Rb8 {[%clk 0:02:54.2]} 9. Nbd2 {[%clk 0:02:59.4]} 9... b5 {[%clk 0:02:53.7]} 10.
Qc1 {[%clk 0:02:56.7]} 10... Nb4 {[%clk 0:02:51.4]} 11. b3 {[%clk 0:02:55.2]}
11... Nd3 {[%clk 0:02:46.9]} 12. Qc2 {[%clk 0:02:51.5]} 12... Nb4 {[%clk
0:02:38.4]} 13. Qc1 {[%clk 0:02:51.6]} 13... Nd3 {[%clk 0:02:38]} 14. Qb1 {[%clk
0:02:51.1]} 14... O-O {[%clk 0:02:27.8]} 15. bxc4 {[%clk 0:02:50.5]} 15... bxc4
{[%clk 0:02:28.7]} 16. Qxb8 {[%clk 0:02:49.8]} 1-0

[Event "*** Titled Tuesday Blitz"]
[Site "Chess.com"]
[Date "2021.03.30"]
[Round "3"]
[White "vlad_Sid"]
[Black "Raud100"]
[Result "1-0"]
[WhiteElo "2570"]
[BlackElo "2383"]
[TimeControl "180+1"]
[EndTime "10:24:08 PDT"]
[Termination "vlad_Sid won by resignation"]

1. c4 {[%clk 0:02:53.5]} 1... c6 {[%clk 0:02:59.7]} 2. g3 {[%clk 0:02:54.4]}
2... d5 {[%clk 0:03:00.4]} 3. Bg2 {[%clk 0:02:53.5]} 3... Nf6 {[%clk 0:03:00.5]}
4. Nf3 {[%clk 0:02:53.8]} 4... Bg4 {[%clk 0:02:59.8]} 5. Ne5 {[%clk 0:02:53.2]}
5... Be6 {[%clk 0:02:58.5]} 6. d4 {[%clk 0:02:51.3]} 6... Nbd7 {[%clk
0:02:52.1]} 7. cxd5 {[%clk 0:02:49]} 7... Nxe5 {[%clk 0:02:32.6]} 8. dxe6 {[%clk
0:02:39.7]} 8... Ng6 {[%clk 0:02:29]} 9. exf7+ {[%clk 0:02:36.4]} 9... Kxf7
{[%clk 0:02:29.9]} 10. Nc3 {[%clk 0:02:33.1]} 10... e6 {[%clk 0:02:29.5]} 11.
O-O {[%clk 0:02:27.1]} 11... Be7 {[%clk 0:02:29.2]} 12. e4 {[%clk 0:02:17.6]}
12... Re8 {[%clk 0:02:27.9]} 13. e5 {[%clk 0:02:06.6]} 13... Nd5 {[%clk
0:02:27.2]} 14. Ne4 {[%clk 0:02:05.6]} 14... Kg8 {[%clk 0:02:26]} 15. Bh3 {[%clk
0:01:54.6]} 15... Bf8 {[%clk 0:02:22.7]} 16. Ng5 {[%clk 0:01:51.5]} 16... Qd7
{[%clk 0:02:16.5]} 17. Qg4 {[%clk 0:01:44.3]} 17... Nc7 {[%clk 0:02:13.9]} 18.
Qh5 {[%clk 0:01:43.1]} 1-0

[Event "*** Titled Tuesday Blitz"]
[Site "Chess.com"]
[Date "2021.03.30"]
[Round "3"]
[White "albi1999"]
[Black "vugarrasulov"]
[Result "0-1"]
[WhiteElo "2618"]
[BlackElo "2865"]
[TimeControl "180+1"]
[EndTime "10:24:37 PDT"]
[Termination "vugarrasulov won by resignation"]

1. d4 {[%clk 0:03:00.9]} 1... Nf6 {[%clk 0:02:59.7]} 2. c4 {[%clk 0:02:58.3]}
2... e6 {[%clk 0:03:00.1]} 3. Nf3 {[%clk 0:02:57.3]} 3... d5 {[%clk 0:02:55]} 4.
g3 {[%clk 0:02:55.6]} 4... Bb4+ {[%clk 0:02:51.8]} 5. Bd2 {[%clk 0:02:55.3]}
5... Bd6 {[%clk 0:02:52]} 6. Nc3 {[%clk 0:02:54.4]} 6... c6 {[%clk 0:02:52.1]}
7. Qc2 {[%clk 0:02:53.5]} 7... O-O {[%clk 0:02:52.3]} 8. e4 {[%clk 0:02:53]}
8... dxe4 {[%clk 0:02:49.3]} 9. Nxe4 {[%clk 0:02:53.9]} 9... Nxe4 {[%clk
0:02:49.7]} 10. Qxe4 {[%clk 0:02:54.8]} 10... Nd7 {[%clk 0:02:49.6]} 11. Bg2
{[%clk 0:02:45.4]} 11... e5 {[%clk 0:02:42.4]} 12. dxe5 {[%clk 0:02:02.3]} 12...
Nxe5 {[%clk 0:02:43.3]} 13. Nxe5 {[%clk 0:01:44.5]} 13... Bxe5 {[%clk
0:02:44.2]} 14. O-O-O {[%clk 0:01:42.8]} 14... Qf6 {[%clk 0:02:43.6]} 15. Bg5
{[%clk 0:01:15.5]} 15... Bxb2+ {[%clk 0:02:35.6]} 16. Kb1 {[%clk 0:01:14.2]}
16... Qxg5 {[%clk 0:02:35.6]} 17. Kxb2 {[%clk 0:01:13.8]} 17... Be6 {[%clk
0:02:35.3]} 18. Qd4 {[%clk 0:01:05.1]} 18... Rfd8 {[%clk 0:02:30.4]} 19. Qc3
{[%clk 0:01:04.1]} 19... Qc5 {[%clk 0:02:29.9]} 0-1

[Event "*** Titled Tuesday Blitz"]
[Site "Chess.com"]
[Date "2021.03.30"]
[Round "3"]
[White "Ermito2020"]
[Black "VladimirBugayev"]
[Result "1-0"]
[WhiteElo "2516"]
[BlackElo "2286"]
[TimeControl "180+1"]
[EndTime "10:24:51 PDT"]
[Termination "Ermito2020 won by resignation"]

1. e4 {[%clk 0:03:00.9]} 1... c6 {[%clk 0:02:59.9]} 2. d4 {[%clk 0:03:00.3]}
2... d5 {[%clk 0:03:00.3]} 3. e5 {[%clk 0:03:00]} 3... Bf5 {[%clk 0:02:59.7]} 4.
Nf3 {[%clk 0:03:00.9]} 4... e6 {[%clk 0:02:59.9]} 5. Be2 {[%clk 0:03:01.3]} 5...
c5 {[%clk 0:02:58.2]} 6. Be3 {[%clk 0:03:00.1]} 6... Qb6 {[%clk 0:02:57]} 7. Nc3
{[%clk 0:02:59.8]} 7... Nc6 {[%clk 0:02:56.9]} 8. O-O {[%clk 0:02:58]} 8... Qxb2
{[%clk 0:02:56.6]} 9. Qe1 {[%clk 0:02:58.2]} 9... cxd4 {[%clk 0:02:55.7]} 10.
Bxd4 {[%clk 0:02:57.5]} 10... Nxd4 {[%clk 0:02:49.6]} 11. Nxd4 {[%clk
0:02:58.4]} 11... Bb4 {[%clk 0:02:49.8]} 12. Ndb5 {[%clk 0:02:58.3]} 12... Bxc3
{[%clk 0:02:39.1]} 13. Nxc3 {[%clk 0:02:54.6]} 13... Ne7 {[%clk 0:02:32.3]} 14.
Rb1 {[%clk 0:02:50.6]} 14... Qxc2 {[%clk 0:02:12.8]} 15. Rxb7 {[%clk 0:02:46]}
15... f6 {[%clk 0:01:33.7]} 16. Nb5 {[%clk 0:02:04.6]} 16... fxe5 {[%clk
0:01:31.6]} 17. Nc7+ {[%clk 0:01:56.6]} 17... Kf7 {[%clk 0:01:30.4]} 18. Nxa8
{[%clk 0:01:56.1]} 18... Rxa8 {[%clk 0:01:31]} 19. Qb4 {[%clk 0:01:56.2]} 19...
Re8 {[%clk 0:01:29.3]} 20. Bb5 {[%clk 0:01:55.9]} 1-0

[Event "*** Titled Tuesday Blitz"]
[Site "Chess.com"]
[Date "2021.03.30"]
[Round "3"]
[White "politeplayer"]
[Black "x-5963514717"]
[Result "1-0"]
[WhiteElo "2232"]
[BlackElo "2350"]
[TimeControl "180+1"]
[EndTime "10:25:03 PDT"]
[Termination "politeplayer won by resignation"]

1. e4 {[%clk 0:03:00.9]} 1... e5 {[%clk 0:02:59.4]} 2. Nf3 {[%clk 0:03:00]} 2...
Nc6 {[%clk 0:02:59.9]} 3. d4 {[%clk 0:03:00.5]} 3... exd4 {[%clk 0:02:59.9]} 4.
Nxd4 {[%clk 0:03:01]} 4... Bb4+ {[%clk 0:03:00.6]} 5. c3 {[%clk 0:02:58.3]} 5...
Bc5 {[%clk 0:03:00.9]} 6. Be3 {[%clk 0:02:55.7]} 6... Bb6 {[%clk 0:03:01.2]} 7.
Bc4 {[%clk 0:02:52.9]} 7... Nf6 {[%clk 0:02:59.4]} 8. Nxc6 {[%clk 0:02:36.5]}
8... bxc6 {[%clk 0:02:58.4]} 9. e5 {[%clk 0:02:36.8]} 9... Nd5 {[%clk
0:02:56.6]} 10. Bxd5 {[%clk 0:02:27.3]} 10... cxd5 {[%clk 0:02:54.5]} 11. Qg4
{[%clk 0:02:05.7]} 11... Bxe3 {[%clk 0:02:32.2]} 12. Qxg7 {[%clk 0:01:57.5]}
12... Bxf2+ {[%clk 0:02:13.4]} 13. Kxf2 {[%clk 0:01:55.8]} 13... Qh4+ {[%clk
0:02:13.5]} 14. g3 {[%clk 0:01:49.3]} 14... Qe4 {[%clk 0:01:49.2]} 15. Qxh8+
{[%clk 0:01:47]} 15... Ke7 {[%clk 0:01:49]} 16. Qf6+ {[%clk 0:01:45.4]} 16...
Ke8 {[%clk 0:01:48.6]} 17. Nd2 {[%clk 0:01:17.2]} 17... Qxh1 {[%clk 0:01:44.5]}
18. Rxh1 {[%clk 0:01:15.1]} 1-0